{"text_format":"3","workbook":"xlsx","n_sheets":7,"sheets":["行政许可实施情况","行政处罚实施情况","行政强制实施情况","行政征收实施情况","行政征用实施情况","行政检查实施情况","行政执法情况说明"],"not_rendered":{"defined_names":1},"read":"whole","date_system":"1900"}

{"sheet":"行政许可实施情况","index":0,"n_rows":28,"n_cols":9,"rows_kept":28,"merged":[[0,0,0,8],[1,0,2,0],[1,1,2,1],[1,2,2,2],[1,3,2,3],[1,4,1,7],[1,8,2,8],[27,0,27,8]]}
["   开平市发展和改革局2018年度行政许可实施情况统计表（盖章）"]
["序号","统一社会信用代码","组织机构代码","单位全称","行政许可实施数量（宗）",{"$nulls":3},"撤销许可的数量"]
[{"$nulls":4},"申请数量","受理数量","许可的数量","不予许可的数量"]
[1,"11440783007081624K","11440783007081624K","开平市发展和改革局",247,247,247,0,0]
{"$rows_empty":21}
["合计",{"$nulls":3},{"$f":"SUBTOTAL(109,行政许可实施情况!$E$4:$E$25)","v":247},{"$f":"SUBTOTAL(109,行政许可实施情况!$F$4:$F$25)","v":247},{"$f":"SUBTOTAL(109,行政许可实施情况!$G$4:$G$25)","v":247},{"$f":"SUBTOTAL(109,行政许可实施情况!$H$4:$H$25)","v":0},{"$f":"SUBTOTAL(109,行政许可实施情况!$I$4:$I$25)","v":0}]
[]
["说明：\n1. “申请数量”的统计范围为统计年度1月1日至12月31日期间许可机关收到当事人许可申请的数量。\n2. “受理数量”、“许可的数量”、“不予许可的数量”、“撤销许可的数量”的统计范围为统计年度1月1日至12月31日期间许可机关作出受理决定、许可决定、不予许可决定的数量，以及撤销许可决定的数量。\n3. 准予变更、延续和不予变更、延续的数量，分别计入“许可的数量”、“不予许可的数量”。\n"]

{"sheet":"行政处罚实施情况","index":1,"n_rows":28,"n_cols":15,"rows_kept":28,"merged":[[0,0,0,14],[1,0,2,0],[1,1,2,1],[1,2,2,2],[1,3,2,3],[1,4,1,12],[1,13,2,13],[1,14,2,14],[27,0,27,14]]}
["开平市发展和改革局2018年度行政处罚实施情况统计表（盖章）"]
["序号","统一社会信用代码","组织机构代码","单位全称","行政处罚实施数量（宗）",{"$nulls":8},"罚没金额（万元）","备注"]
[{"$nulls":4},"警告","罚款","没收违法所得、没收非法财物","暂扣许可证、执照","责令停产停业","吊销许可证、执照","行政拘留","其他行政处罚","合计（宗）"]
[1,"11440783007081624K","11440783007081624K","开平市发展和改革局",0,0,0,0,0,0,0,0,0,{"v":0,"d":"0.00"}]
{"$rows_empty":22}
["合计",{"$nulls":3},{"$f":"SUBTOTAL(109,行政处罚实施情况!$E$4:$E$26)","v":0},{"$f":"SUBTOTAL(109,行政处罚实施情况!$F$4:$F$26)","v":0},{"$f":"SUBTOTAL(109,行政处罚实施情况!$G$4:$G$26)","v":0},{"$f":"SUBTOTAL(109,行政处罚实施情况!$H$4:$H$26)","v":0},{"$f":"SUBTOTAL(109,行政处罚实施情况!$I$4:$I$26)","v":0},{"$f":"SUBTOTAL(109,行政处罚实施情况!$J$4:$J$26)","v":0},{"$f":"SUBTOTAL(109,行政处罚实施情况!$K$4:$K$26)","v":0},{"$f":"SUBTOTAL(109,行政处罚实施情况!$L$4:$L$26)","v":0},{"$f":"SUBTOTAL(109,行政处罚实施情况!$M$4:$M$26)","v":0},{"$f":"SUBTOTAL(109,行政处罚实施情况!$N$4:$N$26)","v":{"v":0,"d":"0.00"}}]
["说明：\n1. 行政处罚实施数量的统计范围为统计年度1月1日至12月31日期间作出行政处罚决定的数量（包括经行政复议或者行政诉讼被撤销的行政处罚决定数量）。\n2. 其他行政处罚，为法律、行政法规规定的其他行政处罚，比如通报批评、驱逐出境等。\n3. 单处一个类别行政处罚的，计入相应的行政处罚类别；并处两种以上行政处罚的，算一宗行政处罚，计入最重的行政处罚类别。如“没收违法所得，并处罚款”，计入“没收违法所得、没收非法财物”类别；并处明确类别的行政处罚和其他行政处罚的，计入明确类别的行政处罚，如“处罚款，并处其他行政处罚”，计入“罚款”类别。行政处罚类别从轻到重的顺序：（1）警告，（2）罚款，（3）没收违法所得、没收非法财物，（4）暂扣许可证、执照，（5）责令停产停业，（6）吊销许可证、执照，（7）行政拘留。\n4. 没收违法所得、没收非法财物能确定金额的，计入“罚没金额”；不能确定金额的，不计入“罚没金额”。\n5. “罚没金额”以处罚决定书确定的金额为准。\n"]

{"sheet":"行政强制实施情况","index":2,"n_rows":29,"n_cols":16,"rows_kept":29,"merged":[[0,0,0,15],[1,0,3,0],[1,1,3,1],[1,2,3,2],[1,3,3,3],[1,4,2,7],[1,8,1,14],[1,15,3,15],[2,8,2,13],[2,14,3,14],[28,0,28,15]]}
["开平市发展和改革局2018年度行政强制实施情况统计表（盖章）"]
["序号","统一社会信用代码","组织机构代码","单位全称","行政强制实施数量（宗）",{"$nulls":3},"行政强制执行实施数量（宗）",{"$nulls":6},"合计"]
[{"$nulls":8},"行政机关强制执行",{"$nulls":5},"申请法院强制执行"]
[{"$nulls":4},"查封场所、设施或者财物","扣押财物","冻结存款、汇款","其他行政强制措施","加处罚款或者滞纳金","划拨存款、汇款","拍卖或者依法处理查封、扣押的场所、设施或者财物","排除妨碍、恢复原状","代履行","其他强制执行方式"]
[1,"11440783007081624K","11440783007081624K","开平市发展和改革局",0,0,0,0,0,0,0,0,0,0,0,0]
{"$rows_empty":21}
["合计",{"$nulls":3},{"$f":"SUBTOTAL(109,行政强制实施情况!$E$5:$E$26)","v":0},{"$f":"SUBTOTAL(109,行政强制实施情况!$F$5:$F$26)","v":0},{"$f":"SUBTOTAL(109,行政强制实施情况!$G$5:$G$26)","v":0},{"$f":"SUBTOTAL(109,行政强制实施情况!$H$5:$H$26)","v":0},{"$f":"SUBTOTAL(109,行政强制实施情况!$I$5:$I$26)","v":0},{"$f":"SUBTOTAL(109,行政强制实施情况!$J$5:$J$26)","v":0},{"$f":"SUBTOTAL(109,行政强制实施情况!$K$5:$K$26)","v":0},{"$f":"SUBTOTAL(109,行政强制实施情况!$L$5:$L$26)","v":0},{"$f":"SUBTOTAL(109,行政强制实施情况!$M$5:$M$26)","v":0},{"$f":"SUBTOTAL(109,行政强制实施情况!$N$5:$N$26)","v":0},{"$f":"SUBTOTAL(109,行政强制实施情况!$O$5:$O$26)","v":0},{"$f":"SUBTOTAL(109,行政强制实施情况!$P$5:$P$26)","v":0}]
[]
["说明：\n1. 行政强制措施实施数量的统计范围为统计年度1月1日至12月31日期间作出“查封场所、设施或者财物”、“扣押财物”、“冻结存款、汇款”或者“其他行政强制措施”决定的数量。\n2. 行政强制执行实施数量的统计范围为统计年度1月1日至12月31日期间“加处罚款或者滞纳金”、“划拨存款、汇款”、“拍卖或者依法处理查封、扣押的场所、设施或者财物”、“排除妨碍、恢复原状”、“代履行”和“其他强制执行方式”等执行完毕或者终结执行的数量。\n3. 其他强制执行方式，如《城乡规划法》规定的强制拆除；《煤炭法》规定的强制停产、强制消除安全隐患；《金银管理条例》规定的强制收购；《外汇管理条例》规定的回兑等。\n4. 申请法院强制执行数量的统计范围为统计年度1月1日至12月31日期间向法院申请强制执行的数量，时间以申请日期为准。\n"]

{"sheet":"行政征收实施情况","index":3,"n_rows":28,"n_cols":7,"rows_kept":28,"merged":[[0,0,0,6],[1,0,2,0],[1,1,2,1],[1,2,2,2],[1,3,2,3],[1,4,1,5],[1,6,2,6],[27,0,27,6]]}
["开平市发展和改革局2018年度行政征收实施情况统计表（本部门无相关行政执法职责）"]
["序号","统一社会信用代码","组织机构代码","单位全称","行政收费",null,"土地、房屋征收实施数量（宗）"]
[{"$nulls":4},"实施数量（宗）","收费总金额（万元）"]
{"$rows_empty":22}
["合计",{"$nulls":3},{"$f":"SUBTOTAL(109,行政征收实施情况!$E$4:$E$25)","v":0},{"$f":"SUM(F4:F25)","v":{"v":0,"d":"0.00"}},{"$f":"SUM(G4:G25)","v":0}]
[]
["说明：\n行政征收次数的统计范围为统计年度1月1日至12月31日期间作出行政征收决定的数量。\n"]

{"sheet":"行政征用实施情况","index":4,"n_rows":28,"n_cols":5,"rows_kept":28,"merged":[[0,0,0,4],[1,0,2,0],[1,1,2,1],[1,2,2,2],[1,3,2,3],[1,4,2,4],[27,0,27,4]]}
["开平市发展和改革局2018年度行政征用实施情况统计表（本部门无相关行政执法职责）"]
["序号","统一社会信用代码","组织机构代码","单位全称","行政征用实施数量（宗）"]
{"$rows_empty":23}
["合计",{"$nulls":3},{"$f":"SUBTOTAL(109,行政征用实施情况!$E$4:$E$25)","v":0}]
[]
["说明：\n行政征用次数的统计范围为统计年度1月1日至12月31日期间作出行政征用决定的数量。\n"]

{"sheet":"行政检查实施情况","index":5,"n_rows":28,"n_cols":5,"rows_kept":28,"merged":[[0,0,0,4],[1,0,2,0],[1,1,2,1],[1,2,2,2],[1,3,2,3],[27,0,27,4]]}
["开平市发展和改革局2018年度行政检查实施情况统计表（盖章）"]
["序号","统一社会信用代码","组织机构代码","单位全称","行政检查"]
[{"$nulls":4},"次数"]
[1,"11440783007081624K","11440783007081624K","开平市发展和改革局",83]
{"$rows_empty":21}
["合计",{"$nulls":3},{"$f":"SUBTOTAL(109,行政检查实施情况!$E$4:$E$25)","v":83}]
[]
["说明：\n行政检查次数的统计范围为统计年度1月1日至12月31日期间开展行政检查的次数。检查1个检查对象，有完整、详细的检查记录，计为检查1次。无特定检查对象的巡查、巡逻，无完整、详细检查记录，检查后作出行政处罚等其他行政执法行为的，均不计为检查次数。\n\n"]

{"sheet":"行政执法情况说明","index":6,"n_rows":8,"n_cols":1,"rows_kept":8}
["开平市发展和改革局2018年度行政执法情况说明（盖章）"]
["一、行政许可实施情况说明\n1.本部门2018年度行政许可申请总数为247宗，予以许可247宗。\n2.（1）本部门2018年度行政许可（含不予受理、予以许可和不予许可）被申请行政复议0宗，占行政许可申请总数的0%；行政复议决定履行法定职责、撤销、变更或者确认违法0宗，占被申请行政复议宗数的0%，占行政许可申请总数的0%。（2）行政复议后又被提起行政诉讼0宗，判决履行法定职责、撤销、部分撤销、变更、确认违法或者确认无效0宗，占行政复议后又被提起行政诉讼宗数的0%，占行政许可申请总数的0%。\n3.本部门2018年度行政许可（含不予受理、予以许可和不予许可）直接被提起行政诉讼0宗，占行政许可申请总数的0%；判决履行法定职责、撤销、部分撤销、变更、确认违法或者确认无效0宗，占直接被提起行政诉讼宗数的0%，占行政许可申请总数的0%。"]
["二、行政处罚实施情况说明\n1.本部门2018年度行政处罚总数为0宗，罚没金额0元。\n2.（1）本部门2018年度行政处罚被申请行政复议0宗，占行政处罚总数的0%；行政复议决定撤销、变更或者确认违法0宗，占被申请行政复议宗数的0%，占行政处罚总数的0%。（2）行政复议后又被提起行政诉讼0宗，判决撤销、部分撤销、变更、确认违法或者确认无效0宗，占行政复议后又被提起行政诉讼宗数的0%，占行政处罚总数的0%。\n3.本部门2018年度行政处罚直接被提起行政诉讼0宗，占行政处罚总数的0%；判决撤销、部分撤销、变更、确认违法或者确认无效0宗，占直接被提起行政诉讼宗数的0%，占行政处罚总数的0%。"]
["三、行政强制实施情况说明\n1.本部门2018年度行政强制总数为0宗。\n2.（1）本部门2018年度行政强制被申请行政复议0宗，占行政强制总数的0%；行政复议决定撤销、变更或者确认违法0宗，占被申请行政复议宗数的0%，占行政强制总数的0%。（2）行政复议后又被提起行政诉讼0宗，判决撤销、部分撤销、变更、确认违法或者确认无效0宗，占行政复议后又被提起行政诉讼宗数的0%，占行政强制总数的0%。\n3.本部门2018年度行政强制直接被提起行政诉讼0宗，占行政强制总数的0%；判决撤销、部分撤销、变更、确认违法或者确认无效0宗，占直接被提起行政诉讼宗数的0%，占行政强制总数的0%。"]
["四、行政征收实施情况说明\n本部门无相关行政执法职责。"]
["五、行政征用实施情况说明\n本部门无相关行政执法职责。"]
["六、行政检查实施情况说明\n1.本部门2018年度行政检查总数为83次。\n2.（1）本部门2018年度行政检查被申请行政复议0宗，占行政检查总数的0%；行政复议决定确认违法0宗，占被申请行政复议宗数的0%，占行政检查总数的0%。（2）行政复议后又被提起行政诉讼0宗，判决确认违法0宗，占行政复议后又被提起行政诉讼宗数的0%，占行政检查总数的0%。\n3.本部门2018年度行政检查直接被提起行政诉讼0宗，占行政检查总数的0%；判决确认违法0宗，占直接被提起行政诉讼宗数的0%，占行政检查总数的0%。"]
["（注：“被申请行政复议和被提起行政诉讼”数量的统计范围为统计年度1月1日至12月31日期间作出复议决定和生效判决的数量。）\""]